fUST/lending_fUST_20250809
["ID","MTS","AMOUNT","RATE_DAILY","PERIOD"]
[378087649,1754719851398,-738.23,0.00023287,2]
[378087650,1754719851407,-587.3,0.00023287,2]
[378087651,1754719851416,-900.38,0.00023287,2]
[378087652,1754719851425,-460.0,0.00023287,2]
[378087653,1754719851434,-1185.83,0.00023287,2]
[378087654,1754719851444,-460.0,0.00023287,2]
[378087655,1754719851453,-1345.46,0.00023287,2]
[378087656,1754719851465,-1051.35,0.00023287,2]
[378087657,1754719851474,-460.0,0.00023287,2]
[378087658,1754719851484,-460.0,0.00023287,2]
[378087659,1754719851493,-479.37,0.00023287,2]
[378087660,1754719851502,-1787.98,0.00023287,2]
[378087661,1754719851511,-460.0,0.00023287,2]
[378087662,1754719851521,-729.45,0.00023287,2]
[378087663,1754719851534,-2919.37,0.00023287,2]
[378087664,1754719851544,-500.0,0.00023288,2]
[378087666,1754719851553,-50000.0,0.000233,5]
[378087668,1754719851563,-1500.0,0.00023316,2]
[378087670,1754719851574,-500.0,0.00023316,2]
[378087672,1754719851583,-502.20840352,0.00023316,2]
[378087674,1754719851593,-160.0,0.00023348,2]
[378087676,1754719851603,-6107.71790817,0.00023409,2]
[378087678,1754719851613,-420.0,0.00023452,2]
[378087680,1754719851622,-160.0,0.00023456,2]
[378087682,1754719851631,-216.61183532,0.00023456,2]
[378087684,1754719851640,-160.0,0.00023456,2]
[378087686,1754719851650,-215.40758176,0.00023457,2]
[378087688,1754719851659,-160.0,0.00023457,2]
[378087690,1754719851668,-160.0,0.00023457,2]
[378087692,1754719851677,-461.55179734,0.00023457,2]
[378087694,1754719851686,-312.16666667,0.00023457,2]
[378087696,1754719851696,-842.95011917,0.00023457,2]
[378087698,1754719851705,-160.0,0.00023457,2]
[378087700,1754719851714,-12666.14847857,0.00023457,2]
[378087702,1754719851723,-160.0,0.00023457,2]
[378087704,1754719851733,-160.0,0.00023457,2]
[378087706,1754719851742,-231.92402426,0.00023459,2]
[378087708,1754719851755,-971.0,0.00023508,2]
[378087710,1754719851764,-2150.0,0.00023508,2]
[378087712,1754719851773,-636.0,0.00023508,2]
[378087724,1754719851884,-2000.0,0.00023516,2]
[378087727,1754719851894,-2000.0,0.00023516,2]
[378087729,1754719851904,-460.0,0.00023561,2]
[378087731,1754719851913,-460.0,0.00023561,2]
[378087733,1754719851923,-460.0,0.00023561,2]
[378087735,1754719851932,-620.36,0.00023561,2]
[378087737,1754719851942,-460.0,0.00023561,2]
[378087738,1754719851951,-460.0,0.00023561,2]
[378087741,1754719851962,-460.0,0.00023561,2]
[378087743,1754719851971,-460.0,0.00023561,2]
[378087744,1754719851980,-476.32,0.00023561,2]
[378087746,1754719851990,-532.07921807,0.00023561,2]
[378087747,1754719851999,-698.63,0.00023561,2]
[378087748,1754719852008,-460.0,0.00023561,2]
[378087749,1754719852018,-460.0,0.00023561,2]
[378087750,1754719852027,-460.0,0.00023561,2]
[378087751,1754719852037,-460.0,0.00023561,2]
[378087752,1754719852047,-460.0,0.00023561,2]
[378087753,1754719852057,-586.5,0.00023561,2]
[378087754,1754719852066,-460.0,0.00023561,2]
[378087755,1754719852076,-620.61,0.00023561,2]
[378087756,1754719852085,-981.06,0.00023561,2]
[378087757,1754719852094,-1058.35,0.00023561,2]
[378087758,1754719852103,-460.0,0.00023561,2]
[378087759,1754719852114,-1108.01,0.00023561,2]
[378087760,1754719852123,-514.96,0.00023561,2]
[378087761,1754719852132,-480.76,0.00023561,2]
[378087762,1754719852142,-460.0,0.00023561,2]
[378087763,1754719852151,-490.07,0.00023561,2]
[378087764,1754719852160,-460.0,0.00023561,2]
[378087765,1754719852170,-1100.06,0.00023561,2]
[378087766,1754719852180,-889.48,0.00023561,2]
[378087767,1754719852189,-548.55,0.00023561,2]
[378087768,1754719852198,-584.65,0.00023561,2]
[378087769,1754719852208,-460.0,0.00023561,2]
[378087770,1754719852217,-589.62,0.00023561,2]
[378087771,1754719852227,-1382.95,0.00023561,2]
[378087772,1754719852236,-460.0,0.00023561,2]
[378087773,1754719852245,-1872.19,0.00023561,2]
[378087774,1754719852254,-985.43,0.00023561,2]
[378087775,1754719852264,-460.0,0.00023561,2]
[378087776,1754719852273,-460.0,0.00023561,2]
[378087777,1754719852283,-4580.53,0.00023561,2]
[378087778,1754719852292,-654.92,0.00023561,2]
[378087779,1754719852301,-460.0,0.00023561,2]
[378087780,1754719852310,-644.31,0.00023561,2]
[378087781,1754719852319,-460.0,0.00023561,2]
[378087782,1754719852328,-2067.88,0.00023561,2]
[378087783,1754719852337,-584.57,0.00023561,2]
[378087785,1754719852347,-1665.57,0.00023561,2]
[378087787,1754719852356,-460.0,0.00023561,2]
[378087789,1754719852366,-460.0,0.00023561,2]
[378087791,1754719852375,-460.0,0.00023561,2]
[378087792,1754719852385,-460.0,0.00023561,2]
[378087793,1754719852396,-487.36,0.00023561,2]
[378087794,1754719852405,-460.0,0.00023561,2]
[378087795,1754719852415,-807.47,0.00023561,2]
[378087796,1754719852424,-1573.68,0.00023561,2]
[378087797,1754719852434,-460.0,0.00023561,2]
[378087798,1754719852443,-517.67,0.00023561,2]
[378087799,1754719852452,-460.0,0.00023561,2]
[378087800,1754719852462,-460.0,0.00023561,2]
[378087801,1754719852472,-738.23,0.00023561,2]
[378087802,1754719852481,-587.3,0.00023561,2]
[378087803,1754719852491,-900.38,0.00023561,2]
[378087804,1754719852500,-460.0,0.00023561,2]
[378087805,1754719852509,-1185.83,0.00023561,2]
[378087806,1754719852519,-460.0,0.00023561,2]
[378087807,1754719852532,-1345.46,0.00023561,2]
[378087808,1754719852542,-1051.35,0.00023561,2]
[378087809,1754719852551,-460.0,0.00023561,2]
[378087810,1754719852561,-460.0,0.00023561,2]
[378087811,1754719852571,-479.37,0.00023561,2]
[378087812,1754719852581,-1787.98,0.00023561,2]
[378087813,1754719852591,-460.0,0.00023561,2]
[378087814,1754719852600,-729.45,0.00023561,2]
[378087815,1754719852609,-2919.37,0.00023561,2]
[378087816,1754719852619,-592.35057706,0.00023616,2]
[378087817,1754719852629,-2000.0,0.00023616,2]
[378087818,1754719852638,-497.63546535,0.00023616,2]
[378087819,1754719852648,-355.62839087,0.00023616,2]
[378087820,1754719852657,-150.157,0.00023745,2]
[378087821,1754719852666,-150.358,0.00023745,2]
[378087822,1754719852676,-400.0,0.00023832,2]
[378087823,1754719852686,-460.0,0.00023835,2]
[378087824,1754719852696,-460.0,0.00023835,2]
[378087825,1754719852707,-460.0,0.00023835,2]
[378087826,1754719852716,-620.36,0.00023835,2]
[378087827,1754719852725,-460.0,0.00023835,2]
[378087828,1754719852734,-460.0,0.00023835,2]
[378087829,1754719852744,-460.0,0.00023835,2]
[378087830,1754719852754,-460.0,0.00023835,2]
[378087831,1754719852764,-476.32,0.00023835,2]
[378087832,1754719852773,-698.63,0.00023835,2]
[378087833,1754719852782,-460.0,0.00023835,2]
[378087835,1754719852791,-460.0,0.00023835,2]
[378087837,1754719852801,-460.0,0.00023835,2]
[378087838,1754719852810,-460.0,0.00023835,2]
[378087840,1754719852819,-460.0,0.00023835,2]
[378087841,1754719852828,-586.5,0.00023835,2]
[378087842,1754719852837,-460.0,0.00023835,2]
[378087843,1754719852847,-620.61,0.00023835,2]
[378087844,1754719852856,-981.06,0.00023835,2]
[378087845,1754719852865,-1058.35,0.00023835,2]
[378087846,1754719852875,-460.0,0.00023835,2]
[378087847,1754719852884,-1108.01,0.00023835,2]
[378087848,1754719852894,-514.96,0.00023835,2]
[378087850,1754719852903,-480.76,0.00023835,2]
[378087852,1754719852912,-460.0,0.00023835,2]
[378087854,1754719852921,-490.07,0.00023835,2]
[378087856,1754719852930,-460.0,0.00023835,2]
[378087858,1754719852940,-1100.06,0.00023835,2]
[378087860,1754719852949,-889.48,0.00023835,2]
[378087861,1754719852959,-548.55,0.00023835,2]
[378087862,1754719852971,-584.65,0.00023835,2]
[378087863,1754719852987,-460.0,0.00023835,2]
[378087864,1754719853002,-589.62,0.00023835,2]
[378087865,1754719853015,-1382.95,0.00023835,2]
[378087866,1754719853027,-460.0,0.00023835,2]
[378087867,1754719853040,-1872.19,0.00023835,2]
[378087868,1754719853053,-985.43,0.00023835,2]
[378087869,1754719853068,-460.0,0.00023835,2]
[378087870,1754719853081,-460.0,0.00023835,2]
[378087871,1754719853095,-4580.53,0.00023835,2]
[378087872,1754719853109,-654.92,0.00023835,2]
[378087873,1754719853123,-460.0,0.00023835,2]
[378087874,1754719853136,-644.31,0.00023835,2]
[378087875,1754719853148,-460.0,0.00023835,2]
[378087876,1754719853160,-2067.88,0.00023835,2]
[378087877,1754719853175,-584.57,0.00023835,2]
[378087878,1754719853187,-1665.57,0.00023835,2]
[378087879,1754719853200,-460.0,0.00023835,2]
[378087880,1754719853211,-460.0,0.00023835,2]
[378087881,1754719853224,-460.0,0.00023835,2]
[378087882,1754719853236,-460.0,0.00023835,2]
[378087883,1754719853250,-460.0,0.00023835,2]
[378087884,1754719853265,-487.36,0.00023835,2]
[378087885,1754719853278,-807.47,0.00023835,2]
[378087886,1754719853292,-1573.68,0.00023835,2]
[378087887,1754719853306,-460.0,0.00023835,2]
[378087888,1754719853318,-517.67,0.00023835,2]
[378087889,1754719853328,-460.0,0.00023835,2]
[378087890,1754719853339,-460.0,0.00023835,2]
[378087891,1754719853351,-738.23,0.00023835,2]
[378087892,1754719853366,-587.3,0.00023835,2]
[378087893,1754719853379,-900.38,0.00023835,2]
[378087894,1754719853389,-379.83441443,0.00023835,2]
[378087895,1754719853402,-1185.83,0.00023835,2]
[378087896,1754719853417,-460.0,0.00023835,2]
[378087897,1754719853431,-1345.46,0.00023835,2]
[378087898,1754719853443,-1051.35,0.00023835,2]
[378087899,1754719853454,-460.0,0.00023835,2]
[378087900,1754719853465,-460.0,0.00023835,2]
[378087901,1754719853477,-479.37,0.00023835,2]
[378087902,1754719853488,-1787.98,0.00023835,2]
[378087903,1754719853500,-460.0,0.00023835,2]
[378087904,1754719853512,-729.45,0.00023835,2]
[378087905,1754719853525,-2919.37,0.00023835,2]
[378087906,1754719853537,-260.0,0.00023896,2]
[378087907,1754719853550,-221.41563783,0.000239,2]
[378087908,1754719853563,-150.0,0.00023936,2]
[378087909,1754719853575,-151.0,0.00024013,2]
[378087910,1754719853588,-151.0,0.00024013,2]
[378087911,1754719853599,-151.0,0.00024013,2]
[378087912,1754719853612,-500.0,0.00024013,2]
[378087913,1754719853624,-151.0,0.00024013,2]
[378087914,1754719853636,-500.0,0.00024013,2]
[378087915,1754719853648,-151.0,0.00024013,2]
[378087916,1754719853659,-500.0,0.00024013,2]
[378087917,1754719853671,-151.0,0.00024013,2]
[378087918,1754719853685,-151.0,0.00024013,2]
[378087919,1754719853698,-151.0,0.00024013,2]
[378087920,1754719853712,-500.0,0.00024013,2]
[378087921,1754719853725,-151.0,0.00024013,2]
[378087922,1754719853736,-151.0,0.00024013,2]
[378087923,1754719853748,-500.0,0.00024013,2]
[378087924,1754719853760,-151.0,0.00024013,2]
[378087925,1754719853771,-151.0,0.00024013,2]
[378087926,1754719853783,-500.0,0.00024013,2]
[378087927,1754719853795,-151.0,0.00024013,2]
[378087928,1754719853807,-151.0,0.00024013,2]
[378087929,1754719853819,-500.0,0.00024013,2]
[378087930,1754719853830,-151.0,0.00024013,2]
[378087931,1754719853842,-151.0,0.00024013,2]
[378087932,1754719853853,-500.0,0.00024013,2]
[378087933,1754719853865,-151.0,0.00024013,2]
[378087934,1754719853877,-151.0,0.00024013,2]
[378087935,1754719853889,-500.0,0.00024013,2]
[378087936,1754719853900,-151.0,0.00024013,2]
[378087937,1754719853912,-151.0,0.00024013,2]
[378087938,1754719853923,-500.0,0.00024013,2]
[378087939,1754719853935,-151.0,0.00024013,2]
[378087940,1754719853946,-300.0,0.00024013,2]
[378087941,1754719853959,-151.0,0.00024013,2]
[378087942,1754719853970,-400.0,0.00024013,2]
[378087943,1754719853982,-151.0,0.00024013,2]
[378087944,1754719853994,-300.0,0.00024013,2]
[378087945,1754719854006,-151.0,0.00024013,2]
[378087946,1754719854018,-300.0,0.00024013,2]
[378087947,1754719854030,-151.0,0.00024013,2]
[378087948,1754719854041,-300.0,0.00024013,2]
[378087949,1754719854050,-151.0,0.00024013,2]
[378087950,1754719854060,-300.0,0.00024013,2]
[378087951,1754719854069,-229.41815613,0.00024013,2]
[378087952,1754719854079,-300.0,0.00024013,2]
[378087953,1754719854089,-300.0,0.00024013,2]
[378087954,1754719854098,-300.0,0.00024013,2]
[378087955,1754719854108,-300.0,0.00024013,2]
[378087956,1754719854118,-300.0,0.00024013,2]
[378087957,1754719854127,-300.0,0.00024013,2]
[378087958,1754719854136,-151.0,0.00024013,2]
[378087959,1754719854146,-151.0,0.00024013,2]
[378087960,1754719854155,-250.0,0.00024013,2]
[378087961,1754719854164,-151.0,0.00024013,2]
[378087962,1754719854174,-250.0,0.00024013,2]
[378087963,1754719854183,-151.0,0.00024013,2]
[378087964,1754719854192,-250.0,0.00024013,2]
[378087965,1754719854202,-250.0,0.00024013,2]
[378087966,1754719854213,-151.0,0.00024013,2]
[378087967,1754719854222,-151.0,0.00024013,2]
[378087968,1754719854232,-250.0,0.00024013,2]
[378087969,1754719854241,-250.0,0.00024013,2]
[378087970,1754719854250,-151.0,0.00024013,2]
[378087971,1754719854260,-250.0,0.00024013,2]
[378087972,1754719854268,-151.0,0.00024013,2]
[378087973,1754719854278,-250.0,0.00024013,2]
[378087974,1754719854287,-151.0,0.00024013,2]
[378087975,1754719854296,-250.0,0.00024013,2]
[378087976,1754719854507,-151.0,0.00024013,2]
[378087977,1754719854545,-250.0,0.00024013,2]
[378087978,1754719854562,-151.0,0.00024013,2]
[378087979,1754719854573,-250.0,0.00024013,2]
[378087980,1754719854583,-151.0,0.00024013,2]
[378087981,1754719854593,-250.0,0.00024013,2]
[378087982,1754719854602,-151.0,0.00024013,2]
[378087983,1754719854612,-2500.0,0.00024064,2]
[378087984,1754719854621,-2500.0,0.00024064,2]
[378087985,1754719854631,-1759.0,0.00024065,3]
[378087986,1754719854641,-1759.0,0.00024065,3]
[378087987,1754719854651,-1759.0,0.00024065,3]
[378087988,1754719854660,-1837.51077045,0.00024065,3]
[378087989,1754719854669,-1759.0,0.00024065,3]
[378087990,1754719854679,-1759.0,0.00024065,3]
[378087991,1754719854692,-842.95011917,0.00024065,3]
[378087992,1754719854701,-160.0,0.00024065,3]
[378087993,1754719854712,-12666.14847857,0.00024065,3]
[378087994,1754719854721,-160.0,0.00024065,3]
[378087995,1754719854731,-215.40758176,0.00024065,3]
[378087996,1754719854741,-443.99370016,0.00024109,2]
[378087997,1754719854750,-460.0,0.00024109,2]
[378087998,1754719854759,-460.0,0.00024109,2]
[378087999,1754719854769,-620.36,0.00024109,2]
[378088000,1754719854778,-460.0,0.00024109,2]
[378088001,1754719854787,-460.0,0.00024109,2]
[378088002,1754719854797,-460.0,0.00024109,2]
[378088003,1754719854806,-460.0,0.00024109,2]
[378088004,1754719854816,-476.32,0.00024109,2]
[378088005,1754719854825,-698.63,0.00024109,2]
[378088006,1754719854834,-460.0,0.00024109,2]
[378088007,1754719854844,-460.0,0.00024109,2]
[378088008,1754719854853,-460.0,0.00024109,2]
[378088009,1754719854862,-460.0,0.00024109,2]
[378088010,1754719854872,-460.0,0.00024109,2]
[378088011,1754719854881,-586.5,0.00024109,2]
[378088012,1754719854890,-460.0,0.00024109,2]
[378088013,1754719854899,-620.61,0.00024109,2]
[378088014,1754719854908,-981.06,0.00024109,2]
[378088015,1754719854917,-1058.35,0.00024109,2]
[378088016,1754719854927,-460.0,0.00024109,2]
[378088017,1754719854937,-1108.01,0.00024109,2]
[378088018,1754719854946,-514.96,0.00024109,2]
[378088019,1754719854957,-480.76,0.00024109,2]
[378088020,1754719854967,-460.0,0.00024109,2]
[378088021,1754719854976,-490.07,0.00024109,2]
[378088022,1754719854985,-460.0,0.00024109,2]
[378088023,1754719854994,-1100.06,0.00024109,2]
[378088024,1754719855004,-889.48,0.00024109,2]
[378088025,1754719855013,-548.55,0.00024109,2]
[378088026,1754719855023,-584.65,0.00024109,2]
[378088027,1754719855032,-460.0,0.00024109,2]
[378088028,1754719855042,-589.62,0.00024109,2]
[378088029,1754719855051,-1382.95,0.00024109,2]
[378088030,1754719855061,-460.0,0.00024109,2]
[378088031,1754719855071,-1872.19,0.00024109,2]
[378088032,1754719855080,-985.43,0.00024109,2]
[378088033,1754719855090,-460.0,0.00024109,2]
[378088034,1754719855099,-460.0,0.00024109,2]
[378088035,1754719855109,-4580.53,0.00024109,2]
[378088036,1754719855118,-654.92,0.00024109,2]
[378088037,1754719855128,-460.0,0.00024109,2]
[378088038,1754719855138,-644.31,0.00024109,2]
[378088039,1754719855147,-460.0,0.00024109,2]
[378088040,1754719855157,-2067.88,0.00024109,2]
[378088041,1754719855166,-584.57,0.00024109,2]
[378088042,1754719855176,-1665.57,0.00024109,2]
[378088043,1754719855186,-460.0,0.00024109,2]
[378088044,1754719855195,-460.0,0.00024109,2]
[378088045,1754719855206,-460.0,0.00024109,2]
[378088046,1754719855215,-460.0,0.00024109,2]
[378088047,1754719855225,-460.0,0.00024109,2]
[378088048,1754719855234,-487.36,0.00024109,2]
[378088049,1754719855245,-807.47,0.00024109,2]
[378088050,1754719855255,-1573.68,0.00024109,2]
[378088051,1754719855265,-460.0,0.00024109,2]
[378088052,1754719855274,-517.67,0.00024109,2]
[378088053,1754719855284,-460.0,0.00024109,2]
[378088054,1754719855293,-460.0,0.00024109,2]
[378088055,1754719855303,-738.23,0.00024109,2]
[378088056,1754719855312,-587.3,0.00024109,2]
[378088057,1754719855322,-900.38,0.00024109,2]
[378088058,1754719855331,-1185.83,0.00024109,2]
[378088059,1754719855341,-1345.46,0.00024109,2]
[378088060,1754719855350,-1051.35,0.00024109,2]
[378088061,1754719855359,-460.0,0.00024109,2]
[378088062,1754719855369,-460.0,0.00024109,2]
[378088063,1754719855378,-479.37,0.00024109,2]
[378088064,1754719855387,-1787.98,0.00024109,2]
[378088065,1754719855398,-460.0,0.00024109,2]
[378088066,1754719855407,-729.45,0.00024109,2]
[378088067,1754719855417,-2919.37,0.00024109,2]
[378088068,1754719855428,-2500.0,0.00024164,2]
[378088069,1754719855438,-35528.20925582,0.000243,5]
[378088070,1754719888279,5296.32430261,0.000199,2]
[378088071,1754719889533,243.61885932,0.00020958,2]
[378088072,1754719902814,17160.0214302,0.00020875,2]
[378088073,1754719945052,151.0,0.00030137,120]
[378088074,1754720003689,151.0,0.00030137,120]
[378088075,1754720024257,151.0,0.00030137,120]
[378088076,1754720040943,151.0,0.00030137,120]
[378088077,1754720056592,151.0,0.00030137,120]
[378088078,1754720074261,5372.53711614,0.000199,2]
[378088079,1754720079921,223.0,0.00030137,120]
[378088080,1754720101055,-197.66439794,0.00021473,2]
[378088081,1754720170751,151.11938259,0.00021407,2]
[378088082,1754720263737,785.71880286,0.000199,2]
[378088083,1754720263770,4407.74082807,0.000199,2]
[378088084,1754720390472,890.95415045,0.00021407,2]
[378088090,1754720447290,5203.98359984,0.000199,2]
[378088091,1754720490561,198.736326,0.00020797,2]
[378088097,1754720583478,160.15683092,0.00021406,2]
[378088098,1754720633580,5030.51748,0.000199,2]
[378088099,1754720712518,2400.0,0.0003,120]
[378088100,1754720819675,4862.833564,0.000199,2]
[378088102,1754720857318,295.429251,0.00013699,2]
[378088103,1754720857555,295.429251,0.00020187,2]
[378088108,1754720915338,3009.19409988,0.0002,2]
[378088112,1754720936886,150.0,0.00019307,2]
[378088120,1754721011370,4701.21268941,0.000199,2]
[378088161,1754721037783,-400.22022884,0.00021505,2]
[378088163,1754721037797,-1200.0,0.00021506,2]
[378088165,1754721037808,-300.0,0.00021506,2]
[378088167,1754721037819,-300.0,0.00021506,2]
[378088169,1754721037830,-99.28722759,0.00021506,2]
[378088175,1754721037879,-112.71277241,0.00021506,2]
[378088176,1754721037891,-300.0,0.00021506,2]
[378088178,1754721037902,-160.0,0.00021507,2]
[378088180,1754721037913,-62333.63799893,0.00021507,2]
[378088181,1754721037925,-4701.21268918,0.00021655,2]
[378088183,1754721037935,-196.87,0.00021806,10]
[378088185,1754721037944,-283.49,0.00021807,10]
[378088187,1754721037955,-236.24,0.00021807,10]
[378088189,1754721037967,-500.0,0.00021816,2]
[378088191,1754721037976,-500.0,0.00021816,2]
[378088192,1754721037985,-500.0,0.00021816,2]
[378088194,1754721037995,-500.0,0.00021816,2]
[378088198,1754721038277,-500.0,0.00021816,2]
[378088200,1754721038290,-500.0,0.00021816,2]
[378088201,1754721038300,-500.0,0.00021816,2]
[378088203,1754721038309,-500.0,0.00021816,2]
[378088204,1754721038319,-231.14417611,0.00021816,2]
[378088205,1754721038328,-500.0,0.00021816,2]
[378088206,1754721038338,-500.0,0.00021816,2]
[378088207,1754721038347,-500.0,0.00021816,2]
[378088208,1754721038357,-500.0,0.00021816,2]
[378088209,1754721038367,-500.0,0.00021816,2]
[378088210,1754721038376,-500.0,0.00021816,2]
[378088211,1754721038386,-500.0,0.00021816,2]
[378088212,1754721038395,-500.0,0.00021816,2]
[378088213,1754721038404,-500.0,0.00021816,2]
[378088214,1754721038414,-500.0,0.00021816,2]
[378088215,1754721038423,-500.0,0.00021816,2]
[378088216,1754721038433,-500.0,0.00021816,2]
[378088217,1754721038443,-500.0,0.00021816,2]
[378088218,1754721038452,-500.0,0.00021816,2]
[378088219,1754721038461,-500.0,0.00021816,2]
[378088220,1754721038471,-500.0,0.00021816,2]
[378088221,1754721038480,-500.0,0.00021816,2]
[378088222,1754721038491,-500.0,0.00021816,2]
[378088223,1754721038500,-572.52509875,0.00021816,2]
[378088224,1754721038509,-500.0,0.00021816,2]
[378088225,1754721038519,-500.0,0.00021816,2]
[378088226,1754721038529,-500.0,0.00021816,2]
[378088227,1754721038539,-500.0,0.00021816,2]
[378088228,1754721038548,-500.0,0.00021816,2]
[378088229,1754721038558,-500.0,0.00021816,2]
[378088230,1754721038567,-500.0,0.00021816,2]
[378088231,1754721038576,-616.18808269,0.00021816,2]
[378088232,1754721038587,-489.28843108,0.00021816,2]
[378088233,1754721038646,-10.71156892,0.00021816,2]
[378088234,1754721038657,-424.79918392,0.00021816,2]
[378088235,1754721038668,-75.20081608,0.00021816,2]
[378088236,1754721038678,-500.0,0.00021816,2]
[378088237,1754721038688,-454.7044648,0.00021816,2]
[378088238,1754721038702,-45.2955352,0.00021816,2]
[378088239,1754721038712,-500.0,0.00021816,2]
[378088240,1754721038721,-500.0,0.00021816,2]
[378088241,1754721038731,-500.0,0.00021816,2]
[378088243,1754721038740,-500.0,0.00021816,2]
[378088244,1754721038749,-500.0,0.00021816,2]
[378088245,1754721038759,-500.0,0.00021816,2]
[378088247,1754721038768,-500.0,0.00021816,2]
[378088248,1754721038778,-500.0,0.00021816,2]
[378088250,1754721038787,-500.0,0.00021816,2]
[378088251,1754721038797,-500.0,0.00021816,2]
[378088252,1754721038806,-500.0,0.00021816,2]
[378088253,1754721038815,-580.62138197,0.00021816,2]
[378088254,1754721038825,-500.0,0.00021816,2]
[378088255,1754721038834,-573.6285955,0.00021816,2]
[378088256,1754721038852,-500.0,0.00021816,2]
[378088257,1754721038871,-500.0,0.00021816,2]
[378088258,1754721038886,-500.0,0.00021816,2]
[378088259,1754721038896,-500.0,0.00021816,2]
[378088260,1754721038906,-500.0,0.00021816,2]
[378088261,1754721038915,-500.0,0.00021816,2]
[378088262,1754721038925,-500.0,0.00021816,2]
[378088263,1754721038935,-500.0,0.00021816,2]
[378088264,1754721038947,-500.0,0.00021816,2]
[378088265,1754721038958,-500.0,0.00021816,2]
[378088266,1754721038967,-500.0,0.00021816,2]
[378088267,1754721038977,-500.0,0.00021816,2]
[378088268,1754721038986,-500.0,0.00021816,2]
[378088269,1754721038996,-500.0,0.00021816,2]
[378088270,1754721039006,-500.0,0.00021816,2]
[378088271,1754721039015,-240.0,0.00021816,2]
[378088272,1754721039025,-500.0,0.00021816,2]
[378088273,1754721039035,-500.0,0.00021816,2]
[378088274,1754721039048,-500.0,0.00021816,2]
[378088275,1754721039059,-500.0,0.00021816,2]
[378088276,1754721039068,-500.0,0.00021816,2]
[378088277,1754721039078,-500.0,0.00021816,2]
[378088278,1754721039088,-500.0,0.00021816,2]
[378088279,1754721039098,-500.0,0.00021816,2]
[378088280,1754721039107,-500.0,0.00021816,2]
[378088281,1754721039117,-500.0,0.00021816,2]
[378088282,1754721039127,-500.0,0.00021816,2]
[378088283,1754721039137,-500.0,0.00021816,2]
[378088284,1754721039147,-500.0,0.00021816,2]
[378088285,1754721039156,-500.0,0.00021816,2]
[378088286,1754721039166,-500.0,0.00021816,2]
[378088287,1754721039175,-500.0,0.00021816,2]
[378088288,1754721039185,-500.0,0.00021816,2]
[378088289,1754721039195,-500.0,0.00021816,2]
[378088290,1754721039205,-500.0,0.00021816,2]
[378088291,1754721039215,-536.01802906,0.00021816,2]
[378088292,1754721039224,-500.0,0.00021816,2]
[378088293,1754721039234,-500.0,0.00021816,2]
[378088294,1754721039243,-500.0,0.00021816,2]
[378088295,1754721039252,-500.0,0.00021816,2]
[378088296,1754721039262,-500.0,0.00021816,2]
[378088297,1754721039271,-500.0,0.00021816,2]